{"text_format":"3","workbook":"xlsx","n_sheets":8,"sheets":["지침","자주 연락하는 사람","가끔 연락하는 지인","잠재 인물","Q1 네트워킹 계획","Q2 네트워킹 계획","Q3 네트워킹 계획","Q4 네트워킹 계획"],"not_rendered":{"defined_names":7},"read":"whole","date_system":"1900"}

{"sheet":"지침","index":0,"n_rows":17,"n_cols":5,"rows_kept":17,"merged":[[0,0,0,2],[1,1,1,6],[2,1,2,6],[3,1,3,6],[4,1,4,6],[5,1,5,6],[6,1,6,6],[7,1,7,6],[8,1,8,6],[9,1,9,6],[10,1,10,6],[11,1,11,6]]}
["터치 베이스 추적기",null,null,"방향"]
[null,"1. 연락처가 어떤 범주에 속할지 결정합니다."]
[null,"• 자주 연락하는 사함 - 매우 정기적으로 연락하고 싶은 사람"]
[null,"• 가끔 연락하는 지인 - 1년에 몇 번 연락하는 사람"]
[null,"• 잠재 인물 - 시간이 되면 연락을 취하기 위해 저장하는 사람들"]
[null,"2. 해당 워크시트 탭을 엽니다."]
[null,"3. 해당 정보를 입력합니다(셀에 새 줄을 만들려면 Windows에서 Alt+Enter를 누르고 Mac에서는 Option+Return을 누릅니다)."]
[null,"모바일 Excel 앱에 대한 새 줄 지침은 여기에서 확인하세요."]
[null,"4. 후속 날짜 열에서 샘플 날짜/수식을 삭제하고 연락할 때 입력합니다. \nEnter 키를 누릅니다."]
[null,"5. 후속 날짜 열은 날짜가 매우 가까울 때 빨간색, 다가오면 노란색, 시간이 충분할 때 \n녹색으로 표시됩니다."]
[null,"6. 후속 날짜가 가까워지면 그에 따라 색이 변경됩니다."]
[null,"7. 연락처에 있는 사람에게 연락했으면 완료했나요? 열에 예를 입력합니다. 그러면 날짜가 회색으로 표시됩니다. "]
[null,"8. 다시 연락하려면 예를 아니요로 바꾸고 새 후속 날짜를 입력합니다."]
[null,null,"빨간색","노랑","녹색"]
[null,"자주 연락하는 사람","1-3일 이내","4-7일 이내","8-14일 이상 이내"]
[null,"가끔 연락하는 지인","1-7일 이내","8-45일 이내","46-90일 이상 이내"]
[null,"잠재 인물","1-14일 이내","15-60일 이내","60-120일 이상 이내"]

{"sheet":"자주 연락하는 사람","index":1,"n_rows":7,"n_cols":8,"rows_kept":7,"merged":[[0,0,0,2]]}
["터치 베이스 추적기",null,null,"자주 연락하는 사람"]
[]
["이름","회사","연락처 정보","만난 위치","메모","후속 날짜","완료","대화의 메모"]
["Garth Fort","Adventure Works","프로젝트 관리자\ngarth@adventure-works.com\n(234) 555-0134\nadventure-works.com\nlinkedin.com/in/garth-fort","Trade show 2010","딸 Sandy에게 리모델링 방법에 대해 묻습니다. 대규모 그룹과 으스스한 식품에 대한 불쾌감을 가지고 있습니다.",{"$f":"TODAY()+8","v":"2021-07-20"},"아니요"]
["이름","회사 이름","직위\n전자 메일 주소\n전화 번호\n웹 사이트\n소셜 프로필 링크\n","위치","어디서 만났는지, 무슨 얘기를 했는지, 다음에 이야기할 때 어떤 이야기를 꺼내고 싶은지 등 이 사람에 대해 기억하고 싶은 메모를 적어보세요.",{"$f":"TODAY()-3","v":"2021-07-09"},"예"]
["이름","회사 이름","직위\n전자 메일 주소\n전화 번호\n웹 사이트\n소셜 프로필 링크\n","위치","어디서 만났는지, 무슨 얘기를 했는지, 다음에 이야기할 때 어떤 이야기를 꺼내고 싶은지 등 이 사람에 대해 기억하고 싶은 메모를 적어보세요.",{"$f":"TODAY()+-3","v":"2021-07-09"},"아니요"]
["이름","회사 이름","직위\n전자 메일 주소\n전화 번호\n웹 사이트\n소셜 프로필 링크\n","위치","어디서 만났는지, 무슨 얘기를 했는지, 다음에 이야기할 때 어떤 이야기를 꺼내고 싶은지 등 이 사람에 대해 기억하고 싶은 메모를 적어보세요.",{"$f":"TODAY()+6","v":"2021-07-18"},"아니요"]

{"sheet":"가끔 연락하는 지인","index":2,"n_rows":7,"n_cols":8,"rows_kept":7,"merged":[[0,0,0,2]]}
["터치 베이스 추적기",null,null,"가끔 연락하는 지인"]
[]
["이름","회사","연락처 정보","만난 위치","메모","후속 날짜","완료","대화의 메모"]
["Garth Fort","Adventure Works","리소스 관리자\ngarth@adventure-works.com\n(434) 555-0123\nwww.adventure-works.com\nlinkedin.com/in/garth-fort","Vermont 2016에 휴가","고용 담당자와 마케팅 질문 모두에 편리합니다.",{"$f":"TODAY()+90","v":"2021-10-10"},"아니요"]
["이름","회사 이름","직위\n전자 메일 주소\n전화 번호\n웹 사이트\n소셜 프로필 링크\n","위치","어디서 만났는지, 무슨 얘기를 했는지, 다음에 이야기할 때 어떤 이야기를 꺼내고 싶은지 등 이 사람에 대해 기억하고 싶은 메모를 적어보세요.",{"$f":"TODAY()-3","v":"2021-07-09"},"예"]
["이름","회사 이름","직위\n전자 메일 주소\n전화 번호\n웹 사이트\n소셜 프로필 링크\n","위치","어디서 만났는지, 무슨 얘기를 했는지, 다음에 이야기할 때 어떤 이야기를 꺼내고 싶은지 등 이 사람에 대해 기억하고 싶은 메모를 적어보세요.",{"$f":"TODAY()+-3","v":"2021-07-09"},"아니요"]
["이름","회사 이름","직위\n전자 메일 주소\n전화 번호\n웹 사이트\n소셜 프로필 링크\n","위치","어디서 만났는지, 무슨 얘기를 했는지, 다음에 이야기할 때 어떤 이야기를 꺼내고 싶은지 등 이 사람에 대해 기억하고 싶은 메모를 적어보세요.",{"$f":"TODAY()+40","v":"2021-08-21"},"아니요"]

{"sheet":"잠재 인물","index":3,"n_rows":7,"n_cols":8,"rows_kept":7,"merged":[[0,0,0,2]]}
["터치 베이스 추적기",null,null,"잠재 인물"]
[]
["이름","회사","연락처 정보","만난 위치","메모","후속 날짜","완료","대화의 메모"]
["Garth Fort","프리랜서","디자이너\nsomeone@example.com\n425-555-0123\nexample.com\nlinkedin.com/in/garth-fort","2016년 아들 졸업","최근 졸업하여 매우 숙련되었습니다. 향후 클라이언트에 유용할 수 있습니다.",{"$f":"TODAY()+89","v":"2021-10-09"},"아니요"]
["이름","회사 이름","직위\n전자 메일 주소\n전화 번호\n웹 사이트\n소셜 프로필 링크\n","위치","어디서 만났는지, 무슨 얘기를 했는지, 다음에 이야기할 때 어떤 이야기를 꺼내고 싶은지 등 이 사람에 대해 기억하고 싶은 메모를 적어보세요.",{"$f":"TODAY()-3","v":"2021-07-09"},"예"]
["이름","회사 이름","직위\n전자 메일 주소\n전화 번호\n웹 사이트\n소셜 프로필 링크\n","위치","어디서 만났는지, 무슨 얘기를 했는지, 다음에 이야기할 때 어떤 이야기를 꺼내고 싶은지 등 이 사람에 대해 기억하고 싶은 메모를 적어보세요.",{"$f":"TODAY()+-3","v":"2021-07-09"},"아니요"]
["이름","회사 이름","직위\n전자 메일 주소\n전화 번호\n웹 사이트\n소셜 프로필 링크\n","위치","어디서 만났는지, 무슨 얘기를 했는지, 다음에 이야기할 때 어떤 이야기를 꺼내고 싶은지 등 이 사람에 대해 기억하고 싶은 메모를 적어보세요.",{"$f":"TODAY()+30","v":"2021-08-11"},"아니요"]

{"sheet":"Q1 네트워킹 계획","index":4,"n_rows":20,"n_cols":6,"rows_kept":20,"merged":[[0,0,0,3],[2,0,2,3],[4,0,4,3],[14,5,17,5],[18,0,18,3]]}
["네트워크 확장 계획"]
["방향"]
["이번 분기에 네트워크를 확장할 계획(예: 더 많은 전화 통화, 더 많은 출장 등)을 적어보세요. 그런 다음 새 연락처를 받을 때마다 실제 연락처 번호를 변경하여 목표에 얼마나 근접했는지 추적하세요."]
[]
["이번 분기에 네트워크를 확장하려는 방법"]
["1. 더 많은 전화 걸기"]
["2. 더 많이 여행가기"]
[]
[]
[]
[]
[]
[]
["분기별 연락처 목표","마감 날짜","실제 분기별 연락처가 만들어집니다.","결론"]
[20,{"$f":"TODAY()","v":"2021-07-12"},12,{"$f":"IF(tblGoals[[#This Row],[분기별 연락처 목표]]>0,tblGoals[[#This Row],[실제 분기별 연락처가 만들어집니다.]]/tblGoals[[#This Row],[분기별 연락처 목표]],\"\")","v":{"v":0.6,"d":"60%"}},null,"0% - 25%\n26% - 50%\n51% - 75%\n76% - 100%\n\n도달률에 따라 색 변경"]
[{"$nulls":3},{"$f":"IF(tblGoals[[#This Row],[분기별 연락처 목표]]>0,tblGoals[[#This Row],[실제 분기별 연락처가 만들어집니다.]]/tblGoals[[#This Row],[분기별 연락처 목표]],\"\")","v":""}]
[{"$nulls":3},{"$f":"IF(tblGoals[[#This Row],[분기별 연락처 목표]]>0,tblGoals[[#This Row],[실제 분기별 연락처가 만들어집니다.]]/tblGoals[[#This Row],[분기별 연락처 목표]],\"\")","v":""}]
[]
["결과 성찰/개선사항 참고사항"]
["근접합니다. 대신 점심에 호출해 보세요."]

{"sheet":"Q2 네트워킹 계획","index":5,"n_rows":20,"n_cols":6,"rows_kept":20,"merged":[[0,0,0,3],[2,0,2,3],[4,0,4,3],[14,5,17,5],[18,0,18,3]]}
["네트워크 확장 계획"]
["방향"]
["이번 분기에 네트워크를 확장할 계획(예: 더 많은 전화 통화, 더 많은 출장 등)을 적어보세요. 그런 다음 새 연락처를 받을 때마다 실제 연락처 번호를 변경하여 목표에 얼마나 근접했는지 추적하세요."]
[]
["이번 분기에 네트워크를 확장하려는 방법"]
["1. 더 많은 전화 걸기"]
["2. 더 많이 여행가기"]
[]
[]
[]
[]
[]
[]
["분기별 연락처 목표","마감 날짜","실제 분기별 연락처가 만들어집니다.","결론"]
[20,{"$f":"TODAY()","v":"2021-07-12"},12,{"$f":"IF(tblGoals3[[#This Row],[분기별 연락처 목표]]>0,tblGoals3[[#This Row],[실제 분기별 연락처가 만들어집니다.]]/tblGoals3[[#This Row],[분기별 연락처 목표]],\"\")","v":{"v":0.6,"d":"60%"}},null,"0% - 25%\n26% - 50%\n51% - 75%\n76% - 100%\n\n도달률에 따라 색 변경"]
[{"$nulls":3},{"$f":"IF(tblGoals3[[#This Row],[분기별 연락처 목표]]>0,tblGoals3[[#This Row],[실제 분기별 연락처가 만들어집니다.]]/tblGoals3[[#This Row],[분기별 연락처 목표]],\"\")","v":""}]
[{"$nulls":3},{"$f":"IF(tblGoals3[[#This Row],[분기별 연락처 목표]]>0,tblGoals3[[#This Row],[실제 분기별 연락처가 만들어집니다.]]/tblGoals3[[#This Row],[분기별 연락처 목표]],\"\")","v":""}]
[]
["결과 성찰/개선사항 참고사항"]
["근접합니다. 대신 점심에 호출해 보세요."]

{"sheet":"Q3 네트워킹 계획","index":6,"n_rows":20,"n_cols":6,"rows_kept":20,"merged":[[0,0,0,3],[2,0,2,3],[4,0,4,3],[14,5,17,5],[18,0,18,3]]}
["네트워크 확장 계획"]
["방향"]
["이번 분기에 네트워크를 확장할 계획(예: 더 많은 전화 통화, 더 많은 출장 등)을 적어보세요. 그런 다음 새 연락처를 받을 때마다 실제 연락처 번호를 변경하여 목표에 얼마나 근접했는지 추적하세요."]
[]
["이번 분기에 네트워크를 확장하려는 방법"]
["1. 더 많은 전화 걸기"]
["2. 더 많이 여행가기"]
[]
[]
[]
[]
[]
[]
["분기별 연락처 목표","마감 날짜","실제 분기별 연락처가 만들어집니다.","결론"]
[20,{"$f":"TODAY()","v":"2021-07-12"},12,{"$f":"IF(tblGoals34[[#This Row],[분기별 연락처 목표]]>0,tblGoals34[[#This Row],[실제 분기별 연락처가 만들어집니다.]]/tblGoals34[[#This Row],[분기별 연락처 목표]],\"\")","v":{"v":0.6,"d":"60%"}},null,"0% - 25%\n26% - 50%\n51% - 75%\n76% - 100%\n\n도달률에 따라 색 변경"]
[{"$nulls":3},{"$f":"IF(tblGoals34[[#This Row],[분기별 연락처 목표]]>0,tblGoals34[[#This Row],[실제 분기별 연락처가 만들어집니다.]]/tblGoals34[[#This Row],[분기별 연락처 목표]],\"\")","v":""}]
[{"$nulls":3},{"$f":"IF(tblGoals34[[#This Row],[분기별 연락처 목표]]>0,tblGoals34[[#This Row],[실제 분기별 연락처가 만들어집니다.]]/tblGoals34[[#This Row],[분기별 연락처 목표]],\"\")","v":""}]
[]
["결과 성찰/개선사항 참고사항"]
["근접합니다. 대신 점심에 호출해 보세요."]

{"sheet":"Q4 네트워킹 계획","index":7,"n_rows":20,"n_cols":6,"rows_kept":20,"merged":[[0,0,0,3],[2,0,2,3],[4,0,4,3],[14,5,17,5],[18,0,18,3]]}
["네트워크 확장 계획"]
["방향"]
["이번 분기에 네트워크를 확장할 계획(예: 더 많은 전화 통화, 더 많은 출장 등)을 적어보세요. 그런 다음 새 연락처를 받을 때마다 실제 연락처 번호를 변경하여 목표에 얼마나 근접했는지 추적하세요."]
[]
["이번 분기에 네트워크를 확장하려는 방법"]
["1. 더 많은 전화 걸기"]
["2. 더 많이 여행가기"]
[]
[]
[]
[]
[]
[]
["분기별 연락처 목표","마감 날짜","실제 분기별 연락처가 만들어집니다.","결론"]
[20,{"$f":"TODAY()","v":"2021-07-12"},12,{"$f":"IF(tblGoals348[[#This Row],[분기별 연락처 목표]]>0,tblGoals348[[#This Row],[실제 분기별 연락처가 만들어집니다.]]/tblGoals348[[#This Row],[분기별 연락처 목표]],\"\")","v":{"v":0.6,"d":"60%"}},null,"0% - 25%\n26% - 50%\n51% - 75%\n76% - 100%\n\n도달률에 따라 색 변경"]
[{"$nulls":3},{"$f":"IF(tblGoals348[[#This Row],[분기별 연락처 목표]]>0,tblGoals348[[#This Row],[실제 분기별 연락처가 만들어집니다.]]/tblGoals348[[#This Row],[분기별 연락처 목표]],\"\")","v":""}]
[{"$nulls":3},{"$f":"IF(tblGoals348[[#This Row],[분기별 연락처 목표]]>0,tblGoals348[[#This Row],[실제 분기별 연락처가 만들어집니다.]]/tblGoals348[[#This Row],[분기별 연락처 목표]],\"\")","v":""}]
[]
["결과 성찰/개선사항 참고사항"]
["근접합니다. 대신 점심에 호출해 보세요."]